fUSD/lending_fUSD_20240423
["ID","MTS","AMOUNT","RATE_DAILY","PERIOD"]
[323275169,1713863442951,-504.4335535,0.00011699,2]
[323275172,1713863442960,-500.0,0.00011699,2]
[323275176,1713863442970,-503.71363099,0.00011699,2]
[323275179,1713863442980,-500.0,0.00011699,2]
[323275181,1713863442989,-1590.65,0.00011699,2]
[323275183,1713863442998,-500.0,0.00011699,2]
[323275185,1713863443007,-500.0,0.00011699,2]
[323275187,1713863443017,-500.0,0.00011699,2]
[323275189,1713863443027,-500.0,0.00011699,2]
[323275191,1713863443036,-500.0,0.00011699,2]
[323275193,1713863443046,-1034.72,0.00011699,2]
[323275195,1713863443055,-500.0,0.00011699,2]
[323275198,1713863443064,-500.0,0.00011699,2]
[323275199,1713863443074,-500.0,0.00011699,2]
[323275203,1713863443083,-504.6265962,0.00011699,2]
[323275205,1713863443093,-329.041338,0.00011699,2]
[323275207,1713863443102,-500.0,0.00011699,2]
[323275209,1713863443114,-500.0,0.00011699,2]
[323275211,1713863443129,-500.0,0.00011699,2]
[323275212,1713863443138,-503.09816844,0.00011699,2]
[323275214,1713863443147,-500.0,0.00011699,2]
[323275218,1713863443158,-500.0,0.00011699,2]
[323275221,1713863443170,-500.0,0.00011699,2]
[323275224,1713863443179,-504.73647205,0.00011699,2]
[323275227,1713863443190,-500.0,0.00011699,2]
[323275231,1713863443199,-500.0,0.00011699,2]
[323275234,1713863443208,-500.0,0.00011699,2]
[323275237,1713863443218,-1269.9,0.00011699,2]
[323275240,1713863443227,-500.0,0.00011699,2]
[323275242,1713863443236,-500.0,0.00011699,2]
[323275244,1713863443245,-434.96418336,0.00011699,2]
[323275246,1713863443254,-500.0,0.00011699,2]
[323275248,1713863443263,-500.0,0.00011699,2]
[323275250,1713863443273,-500.0,0.00011699,2]
[323275252,1713863443283,-500.0,0.00011699,2]
[323275254,1713863443292,-500.0,0.00011699,2]
[323275256,1713863443301,-500.0,0.00011699,2]
[323275258,1713863443311,-500.0,0.00011699,2]
[323275260,1713863443320,-500.0,0.00011699,2]
[323275262,1713863443330,-500.0,0.00011699,2]
[323275264,1713863443339,-500.0,0.00011699,2]
[323275266,1713863443350,-500.0,0.00011699,2]
[323275268,1713863443359,-500.0,0.00011699,2]
[323275270,1713863443371,-504.91672357,0.00011699,2]
[323275272,1713863443380,-624.96617444,0.00011699,2]
[323275274,1713863443390,-500.0,0.00011699,2]
[323275276,1713863443399,-500.0,0.00011699,2]
[323275278,1713863443409,-500.0,0.00011699,2]
[323275280,1713863443419,-500.0,0.00011699,2]
[323275282,1713863443428,-500.0,0.00011699,2]
[323275284,1713863443438,-500.0,0.00011699,2]
[323275285,1713863443447,-500.0,0.00011699,2]
[323275286,1713863443456,-500.0,0.00011699,2]
[323275287,1713863443465,-500.0,0.00011699,2]
[323275288,1713863443474,-500.0,0.00011699,2]
[323275289,1713863443483,-500.0,0.00011699,2]
[323275290,1713863443493,-500.0,0.00011699,2]
[323275291,1713863443502,-506.89035017,0.00011699,2]
[323275292,1713863443511,-501.98197262,0.00011699,2]
[323275293,1713863443521,-500.0,0.00011699,2]
[323275294,1713863443530,-500.0,0.00011699,2]
[323275295,1713863443539,-500.0,0.00011699,2]
[323275296,1713863443549,-719.67,0.00011699,2]
[323275297,1713863443558,-500.0,0.00011699,2]
[323275298,1713863443567,-500.0,0.00011699,2]
[323275299,1713863443577,-555.3901913,0.00011699,2]
[323275300,1713863443586,-500.0,0.00011699,2]
[323275301,1713863443595,-500.0,0.00011699,2]
[323275302,1713863443604,-503.91555752,0.00011699,2]
[323275303,1713863443614,-500.0,0.00011699,2]
[323275304,1713863443626,-500.0,0.00011699,2]
[323275305,1713863443635,-501.21823171,0.00011699,2]
[323275306,1713863443645,-1056.69,0.00011699,2]
[323275307,1713863443654,-500.0,0.00011699,2]
[323275308,1713863443664,-500.0,0.00011699,2]
[323275309,1713863443674,-502.36814552,0.00011699,2]
[323275310,1713863443684,-500.0,0.00011699,2]
[323275311,1713863443694,-500.0,0.00011699,2]
[323275312,1713863443703,-500.0,0.00011699,2]
[323275313,1713863443713,-500.0,0.00011699,2]
[323275314,1713863443723,-942.17,0.00011699,2]
[323275315,1713863443732,-500.0,0.00011699,2]
[323275316,1713863443742,-500.0,0.00011699,2]
[323275317,1713863443751,-500.0,0.00011699,2]
[323275318,1713863443761,-501.08256497,0.00011699,2]
[323275319,1713863443770,-421.95552954,0.00011699,2]
[323275320,1713863443780,-211.42,0.00011699,2]
[323275321,1713863443789,-501.86128044,0.00011699,2]
[323275322,1713863443799,-328.60425986,0.00011699,2]
[323275323,1713863443808,-500.0,0.00011699,2]
[323275324,1713863443818,-518.88124678,0.00011699,2]
[323275325,1713863443827,-502.42167712,0.00011699,2]
[323275326,1713863443837,-500.0,0.00011699,2]
[323275327,1713863443846,-500.0,0.00011699,2]
[323275328,1713863443856,-993.59,0.00011699,2]
[323275329,1713863443865,-500.90250241,0.00011699,2]
[323275330,1713863443876,-500.0,0.00011699,2]
[323275331,1713863443885,-500.0,0.00011699,2]
[323275332,1713863443894,-500.0,0.00011699,2]
[323275333,1713863443903,-500.0,0.00011699,2]
[323275335,1713863443913,-500.0,0.00011699,2]
[323275337,1713863443922,-637.31365885,0.00011699,2]
[323275339,1713863443932,-500.0,0.00011699,2]
[323275341,1713863443942,-500.0,0.00011699,2]
[323275343,1713863443953,-500.0,0.00011699,2]
[323275345,1713863443963,-501.14815085,0.00011699,2]
[323275346,1713863443979,-500.0,0.00011699,2]
[323275347,1713863444000,-503.32350494,0.00011699,2]
[323275348,1713863444009,-529.0,0.00011699,2]
[323275349,1713863444019,-500.0,0.00011699,2]
[323275350,1713863444028,-1127.63,0.00011699,2]
[323275351,1713863444039,-409.95577367,0.00011699,2]
[323275352,1713863444048,-500.0,0.00011699,2]
[323275353,1713863444059,-502.56897386,0.00011699,2]
[323275354,1713863444071,-500.0,0.00011699,2]
[323275355,1713863444081,-500.0,0.00011699,2]
[323275356,1713863444090,-500.0,0.00011699,2]
[323275357,1713863444099,-504.09832341,0.00011699,2]
[323275358,1713863444108,-500.0,0.00011699,2]
[323275359,1713863444123,-500.0,0.00011699,2]
[323275360,1713863444132,-500.0,0.00011699,2]
[323275361,1713863444141,-500.0,0.00011699,2]
[323275362,1713863444150,-500.0,0.00011699,2]
[323275363,1713863444161,-500.0,0.00011699,2]
[323275364,1713863444171,-500.0,0.00011699,2]
[323275365,1713863444180,-500.0,0.00011699,2]
[323275366,1713863444191,-500.0,0.00011699,2]
[323275367,1713863444201,-500.0,0.00011699,2]
[323275368,1713863444210,-500.0,0.00011699,2]
[323275369,1713863444221,-500.0,0.00011699,2]
[323275370,1713863444232,-500.0,0.00011699,2]
[323275371,1713863444242,-226.35515461,0.00011699,2]
[323275372,1713863444252,-500.0,0.00011699,2]
[323275373,1713863444262,-500.0,0.00011699,2]
[323275374,1713863444272,-514.13339924,0.00011699,2]
[323275375,1713863444282,-460.27817615,0.00011699,2]
[323275376,1713863444291,-500.0,0.00011699,2]
[323275377,1713863444300,-1472.4,0.00011699,2]
[323275378,1713863444310,-500.0,0.00011699,2]
[323275379,1713863444320,-630.49,0.00011699,2]
[323275380,1713863444329,-500.0,0.00011699,2]
[323275381,1713863444339,-924.09,0.00011699,2]
[323275382,1713863444349,-500.0,0.00011699,2]
[323275383,1713863444359,-500.0,0.00011699,2]
[323275384,1713863444370,-500.0,0.00011699,2]
[323275385,1713863444379,-500.0,0.00011699,2]
[323275386,1713863444389,-927.6,0.00011699,2]
[323275387,1713863444398,-500.0,0.00011699,2]
[323275388,1713863444408,-500.0,0.00011699,2]
[323275389,1713863444418,-500.0,0.00011699,2]
[323275390,1713863444427,-500.0,0.00011699,2]
[323275391,1713863444437,-500.0,0.00011699,2]
[323275392,1713863444446,-776.78,0.00011699,2]
[323275393,1713863444456,-500.0,0.00011699,2]
[323275394,1713863444466,-518.37211945,0.00011699,2]
[323275395,1713863444475,-500.0,0.00011699,2]
[323275396,1713863444485,-501.37179699,0.00011699,2]
[323275397,1713863444495,-500.0,0.00011699,2]
[323275398,1713863444504,-500.0,0.00011699,2]
[323275399,1713863444513,-500.33238296,0.00011699,2]
[323275400,1713863444523,-538.19,0.00011699,2]
[323275401,1713863444532,-500.0,0.00011699,2]
[323275402,1713863444542,-618.95,0.00011699,2]
[323275403,1713863444552,-500.0,0.00011699,2]
[323275404,1713863444562,-500.0,0.00011699,2]
[323275405,1713863444571,-500.0,0.00011699,2]
[323275406,1713863444581,-500.0,0.00011699,2]
[323275407,1713863444590,-49584.39,0.00011699,2]
[323275408,1713863444599,-500.0,0.00011699,2]
[323275409,1713863444609,-500.0,0.00011699,2]
[323275410,1713863444619,-500.0,0.00011699,2]
[323275411,1713863444629,-500.0,0.00011699,2]
[323275412,1713863444638,-508.48167479,0.00011699,2]
[323275413,1713863444648,-500.0,0.00011699,2]
[323275414,1713863444657,-500.0,0.00011699,2]
[323275415,1713863444667,-500.0,0.00011699,2]
[323275416,1713863444677,-460.67116417,0.00011699,2]
[323275417,1713863445285,-39.32883583,0.00011699,2]
[323275418,1713863445295,-926.64,0.00011699,2]
[323275419,1713863445305,-500.0,0.00011699,2]
[323275420,1713863445315,-500.0,0.00011699,2]
[323275421,1713863445325,-500.0,0.00011699,2]
[323275422,1713863445334,-500.0,0.00011699,2]
[323275423,1713863445345,-500.0,0.00011699,2]
[323275424,1713863445354,-500.0,0.00011699,2]
[323275425,1713863445363,-606.82549983,0.00011699,2]
[323275426,1713863445374,-884.44,0.00011699,2]
[323275427,1713863445384,-500.0,0.00011699,2]
[323275428,1713863445394,-500.0,0.00011699,2]
[323275429,1713863445403,-500.0,0.00011699,2]
[323275430,1713863445413,-500.0,0.00011699,2]
[323275431,1713863445422,-500.0,0.00011699,2]
[323275432,1713863445431,-3138.51,0.00011699,2]
[323275433,1713863445440,-500.0,0.00011699,2]
[323275434,1713863445450,-500.0,0.00011699,2]
[323275435,1713863445459,-500.0,0.00011699,2]
[323275436,1713863445469,-511.86,0.00011699,2]
[323275437,1713863445478,-500.0,0.00011699,2]
[323275438,1713863445487,-500.0,0.00011699,2]
[323275439,1713863445497,-1499.51,0.00011699,2]
[323275440,1713863445506,-500.0,0.00011699,2]
[323275441,1713863445515,-500.0,0.00011699,2]
[323275442,1713863445524,-500.0,0.00011699,2]
[323275443,1713863445534,-807.12,0.00011699,2]
[323275444,1713863445543,-500.0,0.00011699,2]
[323275445,1713863445552,-500.0,0.00011699,2]
[323275446,1713863445562,-500.0,0.00011699,2]
[323275447,1713863445572,-500.0,0.00011699,2]
[323275448,1713863445582,-500.0,0.00011699,2]
[323275449,1713863445591,-551.84,0.00011699,2]
[323275450,1713863445600,-500.0,0.00011699,2]
[323275451,1713863445610,-500.0,0.00011699,2]
[323275452,1713863445620,-500.0,0.00011699,2]
[323275453,1713863445630,-500.0,0.00011699,2]
[323275454,1713863445641,-500.0,0.00011699,2]
[323275455,1713863445650,-568.03,0.00011699,2]
[323275456,1713863445660,-500.0,0.00011699,2]
[323275457,1713863445669,-500.0,0.00011699,2]
[323275458,1713863445679,-500.0,0.00011699,2]
[323275459,1713863445688,-500.0,0.00011699,2]
[323275460,1713863445698,-1974.17,0.00011699,2]
[323275461,1713863445708,-500.0,0.00011699,2]
[323275462,1713863445718,-508.69,0.00011699,2]
[323275463,1713863445728,-501.19383954,0.00011699,2]
[323275464,1713863445737,-500.0,0.00011699,2]
[323275465,1713863445747,-500.0,0.00011699,2]
[323275466,1713863445757,-500.0,0.00011699,2]
[323275467,1713863445767,-827.96,0.00011699,2]
[323275468,1713863445778,-501.59399651,0.00011699,2]
[323275469,1713863445787,-474.99119428,0.00011699,2]
[323275470,1713863445802,-25.00880572,0.00011699,2]
[323275471,1713863445811,-475.68764358,0.00011699,2]
[323275477,1713863446187,-24.31235642,0.00011699,2]
[323275478,1713863446197,-1495.63776772,0.00011699,2]
[323275479,1713863446218,-4906.01929106,0.00011699,2]
[323275480,1713863446231,-4021.08294122,0.00011699,2]
[323275481,1713863446242,-500.0,0.00011699,2]
[323275482,1713863446251,-1225.24,0.00011699,2]
[323275483,1713863446262,-500.0,0.00011699,2]
[323275484,1713863446272,-1551.91,0.00011699,2]
[323275485,1713863446282,-500.0,0.00011699,2]
[323275486,1713863446292,-500.0,0.00011699,2]
[323275487,1713863446302,-1972.01,0.00011699,2]
[323275488,1713863446312,-2293.91,0.00011699,2]
[323275489,1713863446323,-500.0,0.00011699,2]
[323275490,1713863446333,-293.8837001,0.00011699,2]
[323275491,1713863446385,-290.13947291,0.00011699,2]
[323275492,1713863446394,-500.0,0.00011699,2]
[323275493,1713863446403,-500.0,0.00011699,2]
[323275494,1713863446413,-500.0,0.00011699,2]
[323275495,1713863446422,-500.0,0.00011699,2]
[323275496,1713863446432,-500.0,0.00011699,2]
[323275497,1713863446441,-1285.61,0.00011699,2]
[323275498,1713863446451,-500.0,0.00011699,2]
[323275499,1713863446461,-500.0,0.00011699,2]
[323275500,1713863446471,-500.0,0.00011699,2]
[323275501,1713863446480,-500.0,0.00011699,2]
[323275502,1713863446490,-558.7505271,0.00011699,2]
[323275508,1713863446663,-949.8894729,0.00011699,2]
[323275510,1713863446674,-412.96138964,0.00011699,2]
[323275512,1713863447259,-162.99441572,0.0001159,2]
[323275513,1713863447269,-529.21861036,0.00011699,2]
[323275514,1713863447278,-417.90305662,0.00011699,2]
[323275515,1713863447287,-502.00547704,0.00011699,2]
[323275516,1713863447296,-500.0,0.00011699,2]
[323275517,1713863447306,-500.0,0.00011699,2]
[323275518,1713863447316,-500.0,0.00011699,2]
[323275519,1713863447325,-323.15403618,0.00011699,2]
[323275520,1713863447335,-48.92742343,0.00011699,2]
[323275521,1713863447347,-451.07257657,0.00011699,2]
[323275522,1713863447356,-1004.52247999,0.00011699,2]
[323275523,1713863447391,-694.80752001,0.00011699,2]
[323275524,1713863447403,-172.72423395,0.00011699,2]
[323275525,1713863447427,-997.96576605,0.00011699,2]
[323275526,1713863447437,-843.76,0.00011699,2]
[323275527,1713863447447,-727.0,0.00011699,2]
[323275528,1713863447457,-402.07583674,0.00011699,2]
[323275529,1713863447485,-97.92416326,0.00011699,2]
[323275530,1713863447494,-500.0,0.00011699,2]
[323275531,1713863447503,-19910.58583674,0.000117,2]
[323275532,1713863447518,-197505.50985089,0.000117,2]
[323275533,1713863447529,-567.4896255,0.000117,2]
[323275534,1713863447994,-295.47578606,0.0001169,2]
[323275535,1713863448702,-1015.70234958,0.0001169,2]
[323275536,1713863449408,-316.82186436,0.0001169,2]
[323275537,1713863449417,-164.63207472,0.000117,2]
[323275538,1713863449437,-978.66,0.000117,2]
[323275539,1713863449452,-1518.49988375,0.000117,2]
[323275540,1713863460929,830.37369514,0.00011364,2]
[323275541,1713863470034,2161.56,0.00010987,2]
[323275542,1713863559654,539.3,0.00010944,2]
[323275543,1713863636953,150.0,0.00010959,2]
[323275544,1713863636986,522.24,8.992e-05,2]
[323275545,1713863637296,522.24,0.00011256,2]
[323275546,1713863737574,11286.88428198,0.00010861,2]
[323275547,1713863737602,12009.83571802,0.00010861,2]
[323275548,1713863753412,415.4125,0.00011483,2]
[323275549,1713863807059,219402.12730824,0.00011483,2]
[323275550,1713863859511,183.31,0.00010794,2]
[323275551,1713863953163,1440.7,0.00010814,2]
[323275552,1713864070672,568.56,0.00010719,2]
[323275553,1713864138210,495.71,8.792e-05,2]
[323275554,1713864138544,495.71,0.00011056,2]
[323275555,1713864502208,960.13,0.00010649,2]
[323275556,1713864527524,545.15,0.0001064,2]
[323275587,1713864632443,-160.52551263,0.00011381,2]
[323275588,1713864632453,-379.87131537,0.00011482,2]
[323275589,1713864632465,-285.099995,0.00011482,2]
[323275590,1713864632611,-1328.876448,0.00011482,2]
[323275591,1713864636954,446.13,8.727e-05,2]
[323275592,1713864637637,446.13,0.00010991,2]
[323275599,1713864638427,-2338.20773115,0.00011482,2]
[323275600,1713864638436,-25597.87269176,0.00011483,2]
[323275601,1713864638446,-960.9991,0.00011483,2]
[323275602,1713864638455,-3155.4303,0.00011483,2]
[323275603,1713864638464,-1000.0,0.00011483,2]
[323275604,1713864638476,-160.52551263,0.00011486,2]
[323275605,1713864638485,-235.400905,0.00011488,2]
[323275606,1713864638494,-181.03262709,0.00011489,2]
[323275607,1713864638503,-180.16217753,0.00011489,2]
[323275608,1713864638514,-816.8169,0.00011489,2]
[323275609,1713864638523,-14623.87376391,0.00011527,2]
[323275610,1713864638532,-2317.16,0.00011528,2]
[323275611,1713864638541,-2737.84,0.00011528,2]
[323275612,1713864638553,-10000.0,0.00011528,2]
[323275613,1713864638562,-10000.0,0.00011528,2]
[323275614,1713864638572,-182.48888617,0.00011576,2]
[323275615,1713864638581,-220.66660495,0.00011581,2]
[323275616,1713864638591,-499.99,0.00011581,2]
[323275617,1713864638600,-1244.65634193,0.00011581,2]
[323275618,1713864638610,-1119.85,0.00011581,2]
[323275619,1713864638619,-500.0,0.00011581,2]
[323275620,1713864638628,-620.87,0.00011581,2]
[323275621,1713864638637,-500.0,0.00011581,2]
[323275622,1713864638648,-500.0,0.00011581,2]
[323275623,1713864638656,-500.0,0.00011581,2]
[323275624,1713864638666,-561.63,0.00011581,2]
[323275625,1713864638675,-500.0,0.00011581,2]
[323275626,1713864638684,-33378.44390074,0.00011582,2]
[323275627,1713864638694,-44085.54,0.00011582,2]
[323275628,1713864638703,-4196.38,0.00011582,2]
[323275629,1713864638713,-500.0,0.00011582,2]
[323275630,1713864638723,-500.0,0.00011582,2]
[323275631,1713864638732,-1484.89,0.00011582,2]
[323275632,1713864638742,-500.0,0.00011582,2]
[323275633,1713864638751,-621.16623162,0.00011582,2]
[323275634,1713864638761,-6453.02,0.00011582,2]
[323275636,1713864638770,-2245.04,0.00011582,2]
[323275638,1713864638780,-500.0,0.00011582,2]
[323275640,1713864638789,-500.0,0.00011582,2]
[323275642,1713864638798,-913.28,0.00011582,2]
[323275644,1713864638808,-500.0,0.00011582,2]
[323275646,1713864638818,-500.0,0.00011582,2]
[323275648,1713864638827,-1367.33,0.00011582,2]
[323275650,1713864638836,-818.26,0.00011582,2]
[323275652,1713864638846,-5642.44,0.00011582,2]
[323275654,1713864638855,-500.0,0.00011582,2]
[323275656,1713864638865,-2041.0,0.00011582,2]
[323275658,1713864638874,-5107.72,0.00011582,2]
[323275660,1713864638884,-500.0,0.00011582,2]
[323275662,1713864638894,-503.93,0.00011582,2]
[323275664,1713864638903,-9928.94,0.00011582,2]
[323275666,1713864638912,-1118.48,0.00011582,2]
[323275668,1713864638922,-500.0,0.00011582,2]
[323275670,1713864638930,-1215.23,0.00011582,2]
[323275672,1713864638940,-2553.33,0.00011582,2]
[323275674,1713864638951,-1264.96,0.00011582,2]
[323275676,1713864638960,-3592.21,0.00011582,2]
[323275678,1713864638970,-500.0,0.00011582,2]
[323275680,1713864638980,-500.0,0.00011582,2]
[323275682,1713864638990,-500.0,0.00011582,2]
[323275684,1713864638999,-500.0,0.00011582,2]
[323275686,1713864639009,-500.0,0.00011582,2]
[323275688,1713864639019,-6557.07,0.00011582,2]
[323275690,1713864639028,-11274.13,0.00011582,2]
[323275692,1713864639038,-10288.19,0.00011582,2]
[323275694,1713864639048,-500.0,0.00011582,2]
[323275696,1713864639057,-500.0,0.00011582,2]
[323275698,1713864639067,-583.24,0.00011582,2]
[323275700,1713864639076,-500.0,0.00011582,2]
[323275702,1713864639086,-1667.64,0.00011582,2]
[323275703,1713864639096,-1801.08,0.00011582,2]
[323275705,1713864639105,-500.0,0.00011582,2]
[323275707,1713864639115,-771.08,0.00011582,2]
[323275709,1713864639125,-500.0,0.00011582,2]
[323275711,1713864639134,-515.19,0.00011582,2]
[323275713,1713864639142,-500.0,0.00011582,2]
[323275715,1713864639151,-515.25988869,0.00011582,2]
[323275718,1713864639160,-1141.05,0.00011582,2]
[323275720,1713864639170,-500.0,0.00011582,2]
[323275721,1713864639178,-500.0,0.00011582,2]
[323275724,1713864639188,-563.49,0.00011582,2]
[323275726,1713864639197,-503.58412415,0.00011582,2]
[323275727,1713864639206,-500.0,0.00011582,2]
[323275729,1713864639215,-502.92718545,0.00011582,2]
[323275731,1713864639223,-500.0,0.00011582,2]
[323275733,1713864639232,-28078.01,0.00011582,2]
[323275735,1713864639241,-32626.09,0.00011583,2]
[323275737,1713864639250,-32626.09,0.00011583,2]
[323275739,1713864639259,-32626.091,0.00011583,2]
[323275741,1713864639268,-32626.09,0.00011583,2]
[323275743,1713864639277,-32626.09,0.00011583,2]
[323275745,1713864639291,-6180.813,0.00011583,2]
[323275747,1713864639300,-1022.62397374,0.00011584,2]
[323275749,1713864639310,-500.0,0.00011585,2]
[323275751,1713864639319,-2975.72,0.00011585,2]
[323275754,1713864639330,-976.43,0.00011585,2]
[323275756,1713864639340,-500.0,0.00011585,2]
[323275757,1713864639349,-924.07,0.00011585,2]
[323275760,1713864639358,-500.0,0.00011585,2]
[323275762,1713864639367,-500.0,0.00011585,2]
[323275763,1713864639376,-2831.05,0.00011585,2]
[323275765,1713864639386,-500.0,0.00011585,2]
[323275768,1713864639396,-2361.37,0.00011585,2]
[323275770,1713864639407,-500.0,0.00011585,2]
[323275772,1713864639416,-500.0,0.00011585,2]
[323275774,1713864639425,-861.78,0.00011585,2]
[323275776,1713864639434,-500.0,0.00011585,2]
[323275778,1713864639443,-558.77,0.00011585,2]
[323275780,1713864639452,-571.81,0.00011585,2]
[323275782,1713864639461,-3958.39,0.00011585,2]
[323275784,1713864639473,-500.0,0.00011585,2]
[323275786,1713864639487,-561.58,0.00011585,2]
[323275788,1713864639497,-22375.75,0.00011585,2]
[323275790,1713864639506,-500.0,0.00011586,2]
[323275792,1713864639515,-503.74349775,0.00011586,2]
[323275794,1713864639525,-500.0,0.00011586,2]
[323275796,1713864639534,-500.0,0.00011586,2]
[323275797,1713864639543,-500.0,0.00011586,2]
[323275799,1713864639553,-500.0,0.00011586,2]
[323275801,1713864639562,-500.0,0.00011586,2]
[323275803,1713864639571,-1018.13,0.00011586,2]
[323275805,1713864639580,-500.0,0.00011586,2]
[323275807,1713864639589,-500.0,0.00011586,2]
[323275809,1713864639598,-500.0,0.00011586,2]
[323275811,1713864639607,-500.0,0.00011586,2]
[323275813,1713864639615,-500.0,0.00011586,2]
[323275815,1713864639625,-681.74,0.00011586,2]
[323275817,1713864639634,-497.69127045,0.00011586,2]
[323275819,1713864639643,-501.75128079,0.00011586,2]
[323275821,1713864639652,-500.0,0.00011586,2]
[323275823,1713864639661,-500.0,0.00011586,2]
[323275825,1713864639670,-500.0,0.00011586,2]
[323275827,1713864639679,-504.30162004,0.00011586,2]
[323275829,1713864639688,-500.0,0.00011586,2]
[323275831,1713864639696,-500.0,0.00011586,2]
[323275833,1713864639704,-498.3639751,0.00011586,2]
[323275835,1713864639713,-503.71363099,0.00011586,2]
[323275838,1713864639722,-1657.68,0.00011586,2]
[323275840,1713864639731,-500.0,0.00011586,2]
[323275842,1713864639740,-500.0,0.00011586,2]
[323275844,1713864639749,-500.0,0.00011586,2]
[323275846,1713864639758,-500.0,0.00011586,2]
[323275848,1713864639767,-1077.75,0.00011586,2]
[323275850,1713864639775,-500.0,0.00011586,2]
[323275852,1713864639784,-500.0,0.00011586,2]
[323275854,1713864639793,-500.0,0.00011586,2]
[323275856,1713864639802,-500.0,0.00011586,2]
[323275858,1713864639811,-500.0,0.00011586,2]
[323275860,1713864639821,-304.26435674,0.00011586,2]
[323275862,1713864639830,-500.0,0.00011586,2]
[323275864,1713864639839,-500.0,0.00011586,2]
[323275865,1713864639848,-500.0,0.00011586,2]
[323275867,1713864639858,-503.09816844,0.00011586,2]
[323275869,1713864639867,-282.75938724,0.00011586,2]
[323275871,1713864639876,-500.0,0.00011586,2]
[323275873,1713864639885,-504.73647205,0.00011586,2]
[323275875,1713864639895,-500.0,0.00011586,2]
[323275877,1713864639904,-500.0,0.00011586,2]
[323275879,1713864639914,-434.96418336,0.00011586,2]
[323275881,1713864639923,-500.0,0.00011586,2]
[323275884,1713864639933,-500.0,0.00011586,2]
[323275885,1713864639942,-500.0,0.00011586,2]
[323275887,1713864639951,-500.0,0.00011586,2]
[323275889,1713864639960,-500.0,0.00011586,2]
[323275892,1713864640003,-500.0,0.00011586,2]
[323275894,1713864640012,-500.0,0.00011586,2]
[323275896,1713864640024,-500.0,0.00011586,2]
[323275898,1713864640034,-500.0,0.00011586,2]
[323275900,1713864640043,-500.0,0.00011586,2]
[323275902,1713864640054,-500.0,0.00011586,2]
[323275904,1713864640064,-500.0,0.00011586,2]
[323275906,1713864640075,-500.0,0.00011586,2]
[323275908,1713864640085,-504.91672357,0.00011586,2]
[323275910,1713864640096,-624.96617444,0.00011586,2]
[323275912,1713864640106,-500.0,0.00011586,2]
[323275914,1713864640116,-500.0,0.00011586,2]
[323275916,1713864640126,-500.0,0.00011586,2]
[323275918,1713864640136,-500.0,0.00011586,2]
[323275920,1713864640145,-500.0,0.00011586,2]
[323275922,1713864640155,-500.0,0.00011586,2]
[323275924,1713864640165,-500.0,0.00011586,2]
[323275926,1713864640174,-500.0,0.00011586,2]
[323275928,1713864640182,-500.0,0.00011586,2]
[323275930,1713864640192,-501.98197262,0.00011586,2]
[323275932,1713864640202,-500.0,0.00011586,2]
[323275934,1713864640210,-500.0,0.00011586,2]
[323275936,1713864640220,-527.3631521,0.00011586,2]
[323275938,1713864640230,-500.0,0.00011586,2]
[323275940,1713864640240,-500.0,0.00011586,2]